[Event "Saint Louis Super Swiss 2023"]
[Site "Saint Louis"]
[Date "2023.03.12"]
[Round "2.8"]
[White "Antipov, Mikhail Al."]
[Black "Grabinsky, Aaron"]
[Result "1-0"]
[ECO "C54"]
[WhiteElo "2581"]
[BlackElo "2405"]
[Annotator "TA"]
[PlyCount "119"]
[EventDate "2023.03.12"]
[EventType "swiss"]
[EventCountry "USA"]
[SourceTitle "playchess.com"]
[Source "ChessBase"]
[SourceQuality "1"]
[TimeControl "5400+30"]

{[%evp 11,119,15,10,13,27,14,16,11,18,19,29,15,15,15,30,24,34,20,24,27,23,7,6,7,22,0,20,16,39,7,47,27,53,47,55,55,55,50,55,43,64,42,42,42,73,81,99,43,75,56,114,104,150,87,189,204,193,114,188,150,153,141,135,115,212,210,226,210,212,216,350,343,785,784,772,741,862,785,786,764,761,772,742,704,710,606,917,873,804,614,602,602,631,572,834,756,746,742,817,814,859,847,909,866,1154,1133,1126,1089,1039,1031]} 1. e4 {[%emt 0:00:01]} e5 {[%emt 0:00:14]} 2. Nf3 {[%emt 0:00:07]} Nc6 {[%emt 0:00:05]} 3. Bc4 {[%emt 0:00:07]} Bc5 {[%emt 0:00:10]} 4. d3 {[%emt 0:00:05]} d6 {[%emt 0:00:10]} 5. c3 {[%emt 0:00:04]} Nf6 {[%emt 0:00:15]} 6. Nbd2 {[%emt 0:00:05]} a6 {[%emt 0:00:26]} 7. a4 {[%emt 0:00:06] C54: Giuoco Piano: 4 c3 Nf6, main lines with 5 d4 and 5 d3.} Ba7 {[%emt 0:00:26]} 8. h3 {[%emt 0:00:33]} h6 {[%emt 0:00:12]} 9. a5 $5 {[%emt 0:02:15][%mdl 4] [#] The position is equal. An interesting side line.} Nh7 $146 {[%emt 0:03:19]} ({Predecessor:} 9... O-O 10. O-O Ne7 11. Re1 Ng6 12. d4 c6 13. Bf1 Re8 14. Qc2 Nh5 15. b4 Qf6 {1-0 Lu,S (2636)-Liu,Y (2495) Tianjin Binhai Cup 1st 2018 (3)}) 10. Nf1 {[%emt 0:03:47]} Qf6 {[%emt 0:02:48]} 11. Ne3 {[%emt 0:04:18]} Bxe3 {[%emt 0:06:40]} 12. Bxe3 {[%emt 0:00:05]} Be6 {[%emt 0:01:13]} 13. Qb3 {[%emt 0:07:02]} O-O-O {[%emt 0:07:44]} 14. Bxe6+ {[%emt 0:07:50]} Qxe6 {[%emt 0:02:31]} 15. Qxe6+ {[%emt 0:06:38]} fxe6 {[%emt 0:00:40]} 16. Kd2 {[%emt 0:00:02]} Nf6 {[%emt 0:00:54][%cal Bh7f6,Bf6h5,Bh5f4][%mdl 32]} 17. Kc2 {[%emt 0:01:29]} Rhf8 {[%emt 0:03:50]} 18. Nd2 {[%emt 0:11:32]} Nh5 {[%emt 0:02:35]} 19. f3 {[%emt 0:01:55]} Rf7 {[%emt 0:02:08]} 20. h4 {[%emt 0:04:45]} Rh8 {[%emt 0:05:03]} (20... d5 $5 {[%cal Rd5d4]}) 21. Bf2 {[%emt 0:07:51]} g6 {[%emt 0:03:48]} 22. b4 {[%emt 0:07:56]} Nf4 {[%emt 0:03:22]} 23. g3 {[%emt 0:03:48]} Nh5 {[%emt 0:00:21]} 24. Kd1 {[%emt 0:00:06]} Kd7 {[%emt 0:08:15]} 25. Ke2 {[%emt 0:00:12]} Rg8 {[%emt 0:00:49]} 26. Nf1 {[%emt 0:01:59]} d5 {[%emt 0:03:31]} 27. Rb1 {[%emt 0:01:43]} d4 {[%emt 0:03:05]} 28. c4 {[%emt 0:00:34]} Rgf8 {[%emt 0:03:00] [#]} 29. Nd2 {[%emt 0:00:44]} (29. Nh2 $1 $16) 29... Ra8 {[%emt 0:04:01]} 30. Rb2 {[%emt 0:07:00]} Kd6 {[%emt 0:04:01]} (30... Rg8 $14) 31. Ra1 $16 {[%emt 0:05:19]} Ke7 {[%emt 0:08:10] [#]} (31... Kd7 $142) 32. Be1 {[%emt 0:02:28]} (32. b5 $142 $1 {[%cal Rb5c6]} Nd8 33. c5) 32... Raf8 {[%emt 0:05:50]} (32... Nb8 $16 {keeps fighting.}) 33. b5 $18 {[%emt 0:01:04]} Nb8 {[%emt 0:00:02]} (33... axb5 $2 34. cxb5 Na7 35. Nc4 $18) 34. Nf1 {[%emt 0:04:45]} (34. c5 $18) 34... Rc8 {[%emt 0:02:02]} (34... Kd8 $16) 35. Nh2 {[%emt 0:01:20][%cal Bf1h2,Bh2g4,Bg4e5][%mdl 32]} Nf6 {[%emt 0:00:18]} (35... axb5 $2 36. Ng4) 36. Bb4+ {[%emt 0:01:34]} Kd7 {[%emt 0:01:31]} 37. Bd2 {[%emt 0:01:11] Against g5} Rh7 {[%emt 0:00:19]} (37... g5 $16 {was worth a try.}) 38. f4 {[%emt 0:01:21]} Nh5 {[%emt 0:01:32]} 39. Ng4 {[%emt 0:02:04]} (39. fxe5 $6 Nxg3+ 40. Kd1 Rf7) 39... exf4 {[%emt 0:01:08]} 40. Ne5+ {[%emt 0:00:57]} (40. gxf4 $6 Rf8 $16) (40. Bxf4 Nxf4+ 41. gxf4 Ke7) 40... Kd6 {[%emt 0:01:16]} (40... Ke8 $142) 41. gxf4 {[%emt 0:00:17]} (41. Nxg6 Rg8 42. c5+ (42. Bxf4+ Nxf4+ 43. Nxf4 Rxg3 $15) (42. Nxf4 Nxg3+ 43. Kf2 e5 $11) 42... Kd7 43. Ne5+ (43. Nxf4 Nxg3+ 44. Kf3 e5 $15) 43... Ke7 $14) 41... axb5 $2 {[%emt 0:01:22]} (41... Nd7 42. c5+ (42. Nxg6 Nc5 $18) 42... Nxc5) 42. cxb5 {[%emt 0:01:53] White is clearly winning.} ({Less strong is} 42. Nxg6 Rg7 $16) 42... c5 {[%emt 0:00:49]} 43. a6 {[%emt 0:00:25]} ({Not} 43. Nxg6 Rg7 $18) 43... bxa6 {[%emt 0:00:32]} 44. bxa6 {[%emt 0:00:05]} Ra7 {[%emt 0:01:09]} 45. Rb6+ {[%emt 0:01:10][%mdl 64] Skewer} Nc6 {[%emt 0:00:10]} 46. Rg1 {[%emt 0:00:51]} Rg7 {[%emt 0:00:59]} 47. Nc4+ {[%emt 0:00:49]} Kd7 {[%emt 0:00:23]} 48. Ra1 {[%emt 0:00:36]} Rc7 {[%emt 0:00:29]} 49. Ne5+ {[%emt 0:00:48]} Nxe5 {[%emt 0:00:42]} 50. fxe5 {[%emt 0:00:03][%cal Oa6a7] White wants to mate with a7!} Rg8 {[%emt 0:02:14] Dodges a7} 51. Rd6+ {[%emt 0:00:23]} Ke7 {[%emt 0:00:08]} 52. Bxh6 {[%emt 0:00:05]} Ra8 {[%emt 0:00:25]} 53. Kd2 {[%emt 0:01:01]} Rca7 {[%emt 0:00:42]} 54. Kc2 {[%emt 0:00:45]} Kf7 {[%emt 0:01:05]} 55. Kb3 {[%emt 0:00:12]} Rb8+ {[%emt 0:00:15]} 56. Kc4 {[%emt 0:00:21]} Rc7 {[%emt 0:01:06]} 57. Bd2 {[%emt 0:00:09]} Ng3 {[%emt 0:00:43]} 58. Ba5 {[%emt 0:00:13]} Rcc8 {[%emt 0:00:43]} 59. Bb6 {[%emt 0:00:14]} Ne2 {[%emt 0:00:34]} 60. a7 {[%emt 0:00:06] Weighted Error Value: White=0.22 (precise) /Black=0.26 (precise)} 1-0

[Event "Saint Louis Super Swiss 2023"]
[Site "Saint Louis"]
[Date "2023.03.12"]
[Round "2.9"]
[White "Swiercz, Dariusz"]
[Black "Gosdin, Kaleb"]
[Result "1-0"]
[ECO "C18"]
[WhiteElo "2646"]
[BlackElo "2033"]
[Annotator "TA"]
[PlyCount "89"]
[EventDate "2023.03.12"]
[EventType "swiss"]
[EventCountry "USA"]
[SourceTitle "playchess.com"]
[Source "ChessBase"]
[SourceQuality "1"]
[TimeControl "5400+30"]

{[%evp 14,89,20,14,19,24,12,20,25,25,22,23,36,33,30,27,38,32,50,0,0,0,0,0,0,0,0,0,0,0,0,0,0,0,1,0,131,88,78,20,20,16,496,475,574,562,552,552,542,518,487,469,781,707,1482,1149,2922,773,754,739,705,635,624,591,985,970,943,905,29983,29983,29988,29989,29989,29985,29988,29989,29989,29990]} 1. e4 {[%emt 0:00:03][%cal Be2e4,Be4e5][%mdl 32]} e6 {[%emt 0:04:32]} 2. d4 {[%emt 0:01:13]} d5 {[%emt 0:00:04]} 3. Nc3 {[%emt 0:00:31]} Bb4 {[%emt 0:00:26]} 4. e5 {[%emt 0:00:11]} c5 {[%emt 0:01:46]} 5. a3 {[%emt 0:00:05]} Bxc3+ {[%emt 0:00:06]} 6. bxc3 {[%emt 0:00:03]} Ne7 {[%emt 0:00:09]} 7. Qg4 {[%emt 0:05:00]} Kf8 {[%emt 0:00:23]} 8. a4 {[%emt 0:00:16]} Qc7 {[%emt 0:01:25] C18: French: 3 Nc3 Bb4: Main line: 7 h4 and 7 Qg4.} 9. Qd1 {[%emt 0:00:07]} cxd4 {[%emt 0:04:40]} 10. cxd4 {[%emt 0:02:12]} Qc3+ {[%emt 0:00:15] The position is equal.} 11. Bd2 {[%emt 0:00:04]} Qxd4 {[%emt 0:00:12]} 12. Nf3 {[%emt 0:00:04]} Qc5 {[%emt 0:01:41]} 13. Bd3 {[%emt 0:01:19][%mdl 1024] White has compensation.} Nd7 {[%emt 0:21:34]} 14. O-O {[%emt 0:00:45]} Qc7 {[%emt 0:00:04] [#]} 15. Qe2 $146 {[%emt 0:29:24]} ({Predecessor:} 15. c4 b6 16. cxd5 Nxd5 17. a5 Bb7 18. Qe2 Rd8 19. Rfc1 Qb8 20. Bb5 h6 21. axb6 axb6 22. Bxd7 Rxd7 {½-½ Lakatos,S (2378)-De Carlos Arregui,I (2334) Paredes Memorial-B email 2014}) 15... Nc6 {[%emt 0:16:27][%cal Rd7e5]} 16. Bc3 {[%emt 0:01:02]} (16. c4 $14) 16... Nc5 {[%emt 0:05:58]} 17. a5 {[%emt 0:01:18]} Bd7 {[%emt 0:00:40]} 18. Qe3 {[%emt 0:00:50]} Nxd3 {[%emt 0:16:44]} 19. cxd3 {[%emt 0:00:13]} Kg8 {[%emt 0:01:56]} 20. Rfc1 {[%emt 0:03:46]} Qb8 {[%emt 0:00:59]} 21. Rab1 {[%emt 0:14:33]} h6 {[%emt 0:09:29]} 22. h4 {[%emt 0:07:47]} Kh7 {[%emt 0:01:47]} 23. h5 {[%emt 0:00:35]} Rc8 {[%emt 0:00:09] Black is weak on the dark squares} 24. g4 {[%emt 0:00:55]} d4 {[%emt 0:00:57] [#]} 25. Qe4+ $1 $16 {[%emt 0:02:48]} ({Don't do} 25. Bxd4 $6 Nxd4 26. Nxd4 Rxc1+ 27. Rxc1 Kg8 $11) ({Worse is} 25. Nxd4 Qxe5 26. Nf3 Qxe3 27. fxe3 Nd8 $15) 25... Kg8 {[%emt 0:00:30] [#]} 26. Bd2 {[%emt 0:01:08] White is much more active.} (26. a6 $1 $16 b6 27. Bd2 (27. Bxd4 Nxd4 28. Nxd4 Rxc1+ 29. Rxc1 Qd8 $11)) 26... Ne7 $1 $11 {[%emt 0:03:14]} 27. Nxd4 {[%emt 0:04:34] Black must now prevent g5.} Nc6 $2 {[%emt 0:02:39][%mdl 8192] A mistake that costs the game.} (27... Rxc1+ $11 28. Rxc1 Kh8) 28. a6 $18 {[%emt 0:05:06]} Nxd4 {[%emt 0:02:08]} 29. axb7 {[%emt 0:04:00]} ({Stronger than} 29. Qxd4 Rxc1+ 30. Bxc1 (30. Rxc1 Bc6 $11) 30... Qc7 $11) 29... Rxc1+ {[%emt 0:01:35]} 30. Rxc1 {[%emt 0:01:03]} Nc6 {[%emt 0:00:19]} 31. bxa8=Q {[%emt 0:00:27]} Qxa8 {[%emt 0:00:04]} 32. g5 {[%emt 0:00:15]} Qe8 {[%emt 0:01:55]} (32... Qb8 $142 33. gxh6 gxh6 34. Qg4+ Kh8) 33. gxh6 {[%emt 0:00:24]} Ne7 {[%emt 0:00:03]} 34. hxg7 {[%emt 0:02:19] And now h6 would win.} Bc6 {[%emt 0:01:02]} 35. Qb4 {[%emt 0:02:05]} Kxg7 {[%emt 0:01:25]} 36. Bg5 {[%emt 0:07:25]} Nf5 {[%emt 0:00:10]} 37. Kh2 {[%emt 0:00:52][%cal Oc1c6] Rxc6! is the strong threat.} Bf3 {[%emt 0:01:01]} 38. Qf4 {[%emt 0:01:31]} Bxh5 {[%emt 0:00:04]} 39. Bf6+ {[%emt 0:00:04]} Kh7 {[%emt 0:00:37]} 40. Qg5 {[%emt 0:01:28]} Bg6 {[%emt 0:00:49]} 41. Rh1 {[%emt 0:00:56] White mates.} Nh6 {[%emt 0:00:03]} 42. Kg1 {[%emt 0:01:28]} Qf8 {[%emt 0:00:01]} 43. d4 {[%emt 0:00:16]} a5 {[%emt 0:00:02]} 44. Qe3 {[%emt 0:01:15]} Bf5 {[%emt 0:01:52]} 45. Bg5 {[%emt 0:00:06] Weighted Error Value: White=0.11 (very precise) /Black=0.53} 1-0

[Event "Saint Louis Super Swiss 2023"]
[Site "Saint Louis"]
[Date "2023.03.12"]
[Round "2.10"]
[White "Cervantes Landeiro, Thalia"]
[Black "Durarbayli, Vasif"]
[Result "1/2-1/2"]
[ECO "A73"]
[WhiteElo "2253"]
[BlackElo "2635"]
[Annotator "TA"]
[PlyCount "101"]
[EventDate "2023.03.12"]
[EventType "swiss"]
[EventCountry "USA"]
[SourceTitle "playchess.com"]
[Source "ChessBase"]
[SourceQuality "1"]
[TimeControl "5400+30"]

{[%evp 20,101,37,37,42,34,27,0,0,0,0,0,27,36,44,39,37,39,53,31,53,43,45,20,13,-10,-6,0,0,0,0,0,0,0,0,0,15,-8,100,79,81,26,28,32,31,22,41,28,37,17,15,12,19,0,35,0,0,0,0,0,0,0,0,0,184,159,592,102,94,95,95,95,95,81,114,120,120,120,158,143,161,0,0,0]} 1. d4 {[%emt 0:00:07]} Nf6 {[%emt 0:00:06]} 2. c4 {[%emt 0:00:11]} e6 {[%emt 0:00:05]} 3. Nf3 {[%emt 0:00:07]} c5 {[%emt 0:00:07]} 4. d5 {[%emt 0:00:38]} d6 {[%emt 0:00:08]} 5. Nc3 {[%emt 0:01:05]} exd5 {[%emt 0:00:09]} 6. cxd5 {[%emt 0:00:08]} g6 {[%emt 0:00:05]} 7. Nd2 {[%emt 0:00:39]} Bg7 {[%emt 0:00:09]} 8. e4 {[%emt 0:00:13]} O-O {[%emt 0:00:06]} 9. Be2 {[%emt 0:00:16]} Na6 {[%emt 0:00:50]} 10. O-O {[%emt 0:01:46]} Nc7 {[%emt 0:00:24]} 11. a4 {[%emt 0:04:41]} Re8 {[%emt 0:00:15] A73: Modern Benoni: Classical: Unusual Black 9th moves.} 12. Re1 {[%emt 0:04:04]} a6 {[%emt 0:01:06]} 13. Qc2 {[%emt 0:04:36]} Rb8 {[%emt 0:01:00]} 14. a5 $1 {[%emt 0:02:38]} Bd7 {[%emt 0:02:06]} 15. Nc4 {[%emt 0:07:53]} Bb5 {[%emt 0:00:20]} 16. Bg5 {[%emt 0:10:44]} h6 {[%emt 0:03:26] [#]} 17. Bf4 $146 {[%emt 0:05:31]} ({Predecessor:} 17. Bh4 g5 18. Bg3 Bxc4 19. Bxc4 Nh5 20. Qd3 Nf4 21. Qf3 Be5 22. Ra3 b5 23. axb6 Rxb6 {0-1 Goettelmann,G (2007)-Marholev,D (2356) Avoine op 27th 2012 (3)}) 17... Bxc4 {[%emt 0:00:47]} 18. Bxc4 {[%emt 0:00:10]} Nh5 {[%emt 0:00:08]} 19. Be3 {[%emt 0:01:48]} b5 {[%emt 0:00:31]} 20. axb6 {[%emt 0:03:01]} Rxb6 {[%emt 0:00:06]} 21. Be2 {[%emt 0:07:41]} (21. Qd2 {looks sharper.} Rb4 22. b3 Nb5 23. Na2) 21... Nf6 {[%emt 0:00:29][%cal Of6e4]} 22. Rab1 {[%emt 0:06:39]} Qe7 {[%emt 0:05:32][%cal Rf6e4]} 23. Bf4 {[%emt 0:08:38]} Rb4 {[%emt 0:00:58][%cal Of6d5]} 24. Bd3 {[%emt 0:04:30]} Ng4 {[%emt 0:02:27]} (24... Nfxd5 $2 25. Nxd5 Nxd5 26. Bd2 $16) 25. h3 {[%emt 0:03:19]} Ne5 {[%emt 0:00:50]} 26. Bf1 {[%emt 0:00:53]} Reb8 {[%emt 0:01:28]} 27. b3 {[%emt 0:04:22]} R4b7 {[%emt 0:03:10]} 28. Be3 {[%emt 0:02:52]} Kh7 {[%emt 0:05:06]} (28... Nd7 $11) 29. f4 $16 {[%emt 0:00:55]} Nd7 {[%emt 0:00:21]} 30. Bd3 {[%emt 0:02:23]} (30. e5 $1 $16) 30... Nb5 $11 {[%emt 0:01:27]} 31. Nxb5 {[%emt 0:00:45]} axb5 {[%emt 0:00:05] [#]} 32. e5 $1 {[%emt 0:00:32]} dxe5 {[%emt 0:01:35]} 33. f5 {[%emt 0:01:22][%cal Rf5g6]} Qd6 {[%emt 0:00:25]} 34. fxg6+ {[%emt 0:01:19]} fxg6 {[%emt 0:00:02]} 35. Rf1 {[%emt 0:02:07]} Rc7 {[%emt 0:03:07] Black is weak on the light squares} 36. Be4 {[%emt 0:03:42][%cal Bd3e4,Be4g6,Bg6f7][%mdl 32]} (36. Rf7 {feels hotter.} c4 37. bxc4 bxc4 38. Be4) 36... Rf8 {[%emt 0:01:30]} 37. h4 {[%emt 0:00:45]} c4 {[%emt 0:02:15]} 38. h5 {[%emt 0:00:50]} Nf6 {[%emt 0:00:35]} 39. Bxg6+ {[%emt 0:01:15]} (39. hxg6+ Kh8 40. Rbc1 Nxe4 41. Rxf8+ Bxf8 $15) 39... Kh8 {[%emt 0:01:13]} 40. bxc4 {[%emt 0:00:59]} Rxc4 {[%emt 0:00:02]} 41. Qd2 {[%emt 0:00:37]} Nxd5 $2 {[%emt 0:01:44]} (41... Ng4 $11 {and Black has nothing to worry.} 42. Rxf8+ (42. Rxb5 $2 e4 $19) 42... Bxf8) 42. Bf7 $1 $18 {[%emt 0:03:26] A strong pair of Bishops.} (42. Rxb5 Rxf1+ 43. Kxf1 Nxe3+ 44. Qxe3 Rf4+ 45. Kg1 e4 $11) ({Don't play} 42. Bxh6 $6 Qc5+ 43. Kh2 Rg4 $16) 42... Rd8 $2 {[%emt 0:01:29]} (42... Rd4 $16 43. Bxd4 exd4) 43. Rbd1 $2 {[%emt 0:00:43]} (43. Rxb5 $18 Nxe3 44. Qxd6 {[%mdl 64] Deflection} (44. Qxe3 Rf4 $11) 44... Rxd6 45. Rb8+ Bf8 46. Bxc4 Nxf1 47. Rxf8+ Kh7 48. Rf7+ Kh8 49. Kxf1) 43... Rd4 $16 {[%emt 0:01:10]} 44. Bxd4 {[%emt 0:00:10]} exd4 {[%emt 0:00:01]} 45. Bxd5 {[%emt 0:00:56]} Qxd5 {[%emt 0:00:02] [#]} 46. Qd3 $1 {[%emt 0:00:16]} Qxh5 {[%emt 0:03:03]} 47. Rf5 {[%emt 0:00:17]} Qg4 {[%emt 0:00:48]} 48. Rxb5 {[%emt 0:00:18]} Rg8 {[%emt 0:00:38]} 49. Rb7 {[%emt 0:01:39]} Rf8 {[%emt 0:01:35] [#]} 50. Rxg7 $2 {[%emt 0:00:26]} Qxg7 {[%emt 0:00:08]} 51. Qxd4 {[%emt 0:00:08] Weighted Error Value: White=0.25 (precise) /Black=0.27 (precise)} 1/2-1/2

[Event "Saint Louis Super Swiss 2023"]
[Site "Saint Louis"]
[Date "2023.03.13"]
[Round "3.1"]
[White "Nyzhnyk, Illya"]
[Black "Escalante Ramirez, Brian Sebasti"]
[Result "1/2-1/2"]
[ECO "E81"]
[WhiteElo "2654"]
[BlackElo "2474"]
[Annotator "TA"]
[PlyCount "118"]
[EventDate "2023.03.12"]
[EventType "swiss"]
[EventCountry "USA"]
[SourceTitle "playchess.com"]
[Source "ChessBase"]
[SourceQuality "1"]
[TimeControl "5400+30"]

{[%evp 13,118,52,44,45,30,27,16,30,30,0,8,0,0,0,41,49,44,39,42,25,17,16,14,-9,0,0,0,0,0,0,0,0,0,0,0,0,0,0,0,0,0,13,12,18,22,20,22,25,24,33,11,-10,-3,-69,-11,-10,-10,-14,-10,-9,0,0,6,10,15,0,45,30,31,12,91,98,105,95,113,76,98,0,0,0,0,0,0,0,0,0,0,0,0,0,0,0,8,-8,-8,-8,0,0,8,8,8,8,8,8,8,8,8]} 1. d4 {[%emt 0:00:03]} Nf6 {[%emt 0:03:24]} 2. c4 {[%emt 0:00:07]} g6 {[%emt 0:00:29]} 3. f3 {[%emt 0:00:19]} Bg7 {[%emt 0:07:42]} 4. e4 {[%emt 0:00:07]} d6 {[%emt 0:00:02]} 5. Nc3 {[%emt 0:00:07]} O-O {[%emt 0:00:05]} 6. Bg5 {[%emt 0:00:14]} h6 {[%emt 0:17:13]} 7. Be3 {[%emt 0:00:03]} c5 $1 {[%emt 0:00:03][%mdl 4] is more profitable than 7...e5 at the moment.} 8. dxc5 {[%emt 0:04:07] E81: King's Indian: Sämisch: 6th move deviations (including 6 Be3 c6).} dxc5 {[%emt 0:00:05]} 9. Qxd8 {[%emt 0:00:02]} Rxd8 {[%emt 0:00:06]} 10. Bxc5 {[%emt 0:00:04]} Nc6 {[%emt 0:01:05]} 11. Nge2 {[%emt 0:02:18][%cal Bg1e2,Be2f4,Bf4d5][%mdl 32]} Nd7 {[%emt 0:06:54]} (11... b6 $5 {[%cal Rb6c5]} 12. Ba3 Bb7 $11) 12. Ba3 {[%emt 0:00:56]} Nde5 {[%emt 0:00:11]} 13. Nf4 {[%emt 0:01:05] [#] Prevents Nd3+} g5 $146 {[%emt 0:00:29]} ({Predecessor:} 13... Nd4 14. Rc1 e6 15. Nb5 Nec6 16. Be2 h5 17. Nh3 Bh6 18. f4 e5 19. Nxd4 Rxd4 {0-1 Zabron,M (1932)-Koziak,V (2434) Katowice POL-HUN rapid 8th 2020 (5.9)}) 14. Nfd5 {[%emt 0:12:11]} e6 {[%emt 0:08:30]} 15. Nc7 {[%emt 0:09:33]} Rb8 {[%emt 0:00:19]} 16. N7b5 {[%emt 0:00:05]} b6 $1 {[%emt 0:13:47]} 17. Rd1 {[%emt 0:09:16]} Ba6 {[%emt 0:02:12]} 18. Be2 {[%emt 0:09:33]} Bxb5 {[%emt 0:07:59]} 19. Nxb5 {[%emt 0:00:05]} a6 {[%emt 0:00:05]} 20. Nc7 {[%emt 0:21:27]} Rxd1+ {[%emt 0:01:47]} 21. Kxd1 {[%emt 0:00:41]} Rd8+ {[%emt 0:00:02]} 22. Kc1 $1 {[%emt 0:00:27]} Nd4 {[%emt 0:00:03]} 23. Bf1 {[%emt 0:03:26]} Rc8 {[%emt 0:19:46]} 24. Bd6 {[%emt 0:00:11]} a5 {[%emt 0:02:47]} 25. c5 {[%emt 0:01:41]} bxc5 {[%emt 0:00:02]} 26. Ba6 {[%emt 0:00:05] Prevents c4} Rb8 {[%emt 0:01:07] ...Rb6 would be deadly.} 27. Bxc5 {[%emt 0:04:55] This pair of bishops is nice.} Nec6 {[%emt 0:00:01]} 28. Bf1 $1 {[%emt 0:05:16]} Rc8 {[%emt 0:00:46]} 29. Na6 {[%emt 0:01:07]} Nxf3 {[%emt 0:01:50]} 30. gxf3 {[%emt 0:01:09] aiming for Kb1.} Nb4 {[%emt 0:00:01]} 31. Kb1 {[%emt 0:02:20]} Nxa6 {[%emt 0:00:02]} 32. Bd6 {[%emt 0:00:11]} (32. Be3 $5 {[%cal Rf1a6]} Nc5 33. Bb5 $14) 32... Nb4 {[%emt 0:01:31]} 33. e5 {[%emt 0:00:57]} (33. h4 $11) 33... Bf8 {[%emt 0:01:18]} ({Better is} 33... Nc6 $1 $15) 34. Bb5 $11 {[%emt 0:00:44]} Bxd6 {[%emt 0:01:20]} 35. exd6 {[%emt 0:00:03][%mdl 4096] Endgame KRB-KRN} Rd8 {[%emt 0:00:16]} 36. d7 {[%emt 0:00:05]} Nd5 {[%emt 0:00:18]} 37. h4 {[%emt 0:00:08]} gxh4 {[%emt 0:01:31]} 38. Rxh4 {[%emt 0:00:04]} Kg7 {[%emt 0:00:02]} (38... Nb6 {simplifies} 39. Rxh6 Nxd7 40. Rh5 Nb6) 39. Ra4 {[%emt 0:00:13]} Nf6 {[%emt 0:01:14]} 40. Bc6 {[%emt 0:01:30]} Kg6 {[%emt 0:01:17]} ({Weaker is} 40... Nxd7 41. Rd4 $16 (41. Rxa5 Kf6 $11)) 41. f4 {[%emt 0:00:30]} (41. Rxa5 {simplifies} Nxd7 42. a4 Nb8 43. Bb7) 41... h5 {[%emt 0:00:29]} (41... Kf5 $1 $11) 42. Rxa5 $16 {[%emt 0:00:10]} Nxd7 {[%emt 0:00:06] [#]} 43. f5+ $1 {[%emt 0:00:22][%mdl 512]} Kh6 {[%emt 0:01:06]} (43... exf5 $2 44. Rd5 h4 45. a4 $18) 44. fxe6 {[%emt 0:00:05]} fxe6 {[%emt 0:00:01][%cal Bf7e6,Be6e5,Be5e4][%mdl 32]} 45. Ra8 {[%emt 0:02:06] White is more active.} ({White should try} 45. a4 $16) 45... Rxa8 $11 {[%emt 0:00:53] The position is equal.} 46. Bxa8 {[%emt 0:00:02] KB-KN} Nb6 {[%emt 0:00:07]} 47. Bh1 {[%emt 0:00:49]} Kg5 {[%emt 0:01:04]} 48. b3 {[%emt 0:00:28][%cal Bb2b3,Bb3b4][%mdl 32]} Kf4 {[%emt 0:01:07]} 49. a4 {[%emt 0:00:04]} e5 {[%emt 0:00:14]} 50. a5 {[%emt 0:01:14]} Nc8 {[%emt 0:00:01]} 51. b4 {[%emt 0:08:01]} Na7 {[%emt 0:00:03] Wards off b5} 52. Bg2 {[%emt 0:00:02]} h4 {[%emt 0:01:36] And now ...e4 would win.} 53. Bf1 {[%emt 0:00:09]} e4 {[%emt 0:01:00]} ({Don't play} 53... Nc6 54. a6 Na7 55. Kc2 $14) 54. Kc2 {[%emt 0:02:04]} Kg3 {[%emt 0:00:05]} 55. b5 $1 {[%emt 0:00:29] Threatens to win with b6.} Nxb5 {[%emt 0:01:44][%mdl 64] [#] Deflection} 56. Bxb5 {[%emt 0:00:02] Hoping for Bf1.} h3 {[%emt 0:00:06]} 57. a6 {[%emt 0:00:19]} (57. Bc6 $5 e3 $8 58. a6 $11 (58. Kd3 Kf2 $11)) 57... h2 {[%emt 0:00:08]} 58. a7 {[%emt 0:00:01]} h1=Q {[%emt 0:00:07] ( -> ...e3)} 59. a8=Q {[%emt 0:00:05]} Qf3 {[%emt 0:00:36] Weighted Error Value: White=0.08 (flawless) /Black=0.08 (flawless)} 1/2-1/2